bitfinex-derivatives/quotes_SOLF0:USTF0_20260218
["timestamp","ask_amount","ask_price","bid_price","bid_amount"]
[1771434885464,10.9239,82.426,82.387,17.41082544]
[1771434886068,10.9239,82.426,82.392,10.9281]
[1771434886665,3.37721236,82.439,82.391,6.48192544]
[1771434887463,10.9229,82.433,82.391,6.48192544]
[1771434888259,14.29931236,82.439,82.401,10.927]
[1771434888473,10.9221,82.439,82.402,6.48192544]
[1771434888772,3.40236209,82.449,82.402,6.48192544]
[1771434889668,10.9228,82.433,82.402,6.48192544]
[1771434889871,3.40383572,82.436,82.385,6.48192544]
[1771434890271,3.40383572,82.436,82.386,6.48192544]
[1771434890773,10.9237,82.427,82.387,6.48192544]
[1771434890974,10.9237,82.427,82.39,3.01444706]
[1771434891374,10.9237,82.427,82.39,9.4963725]
[1771434891773,10.9237,82.427,82.39,20.4247725]
[1771434893976,3.37064331,82.424,82.38,22.45102676]
[1771434894181,3.37064331,82.424,82.362,39.7985]
[1771434894182,3.37064331,82.409,82.369,22.66129948]
[1771434894376,6.3873074,82.4,82.367,22.66129948]
[1771434894683,3.01444706,82.39,82.35,22.66129948]
[1771434895179,3.01444706,82.39,82.347,29.14322492]
[1771434895570,3.37286034,82.399,82.354,6.48192544]
[1771434896377,10.9282,82.393,82.354,6.48192544]
[1771434897286,10.9291,82.387,82.354,6.48192544]
[1771434897888,10.9291,82.387,82.348,10.934]
[1771434898581,3.01444706,82.39,82.34,9.72021329]
[1771434898779,10.928,82.394,82.353,262.50039385]
[1771434899187,10.9271,82.401,82.363,6.70576623]
[1771434899378,3.35424472,82.409,82.363,6.70576623]
[1771434899685,3.01444706,82.39,82.353,255.79462762]
[1771434900381,3.34723832,82.389,82.353,255.79462762]
[1771434901381,3.34899146,82.408,82.36,3.01444706]
[1771434901582,3.34899146,82.408,82.361,6.70576623]
[1771434901880,3.52664,82.399,82.353,255.79462762]
[1771434902082,3.01444706,82.39,82.353,255.79462762]
[1771434902587,3.52664,82.399,82.353,255.79462762]
[1771434902790,3.52664,82.399,82.354,6.70576623]
[1771434903085,3.52837866,82.414,82.361,6.70576623]
[1771434903380,3.52837866,82.414,82.37,3.01444706]
[1771434903589,3.01444706,82.41,82.368,17.63716623]
[1771434903788,14.45377866,82.414,82.37,3.01444706]
[1771434904175,14.45377866,82.414,82.371,6.70576623]
[1771434904376,3.01444706,82.4,82.356,6.70576623]
[1771434904575,3.01444706,82.4,82.353,278.4559271]
[1771434904576,6.41597719,82.39,82.353,255.79462762]
[1771434904783,3.40139987,82.439,82.381,6.70576623]
[1771434904982,3.01444706,82.42,82.37,9.72021329]
[1771434905485,10.9259,82.41,82.371,6.70576623]
[1771434910194,3.40333389,82.416,82.371,6.70576623]
[1771434911685,3.95233664,82.43,82.38,3.01444706]
[1771434911892,3.95233664,82.44,82.4,3.01444706]
[1771434912090,3.95233664,82.44,82.341,30.09254458]
[1771434912091,10.9189,82.463,82.416,10.925]
[1771434912290,3.01444706,82.46,82.414,6.70576623]
[1771434912499,3.95233664,82.459,82.414,6.70576623]
[1771434912690,3.95233664,82.459,82.4,3.01444706]
[1771434912897,3.95414736,82.439,82.384,6.70576623]
[1771434913497,3.95414736,82.439,82.39,3.01444706]
[1771434913992,10.9236,82.428,82.39,3.01475571]
[1771434914192,3.95414736,82.439,82.4,3.01475571]
[1771434914491,3.84323509,82.453,82.4,3.01475571]
[1771434914696,3.84323509,82.453,82.41,3.01475571]
[1771434914899,10.9214,82.445,82.41,3.01475571]
[1771434915600,10.9214,82.445,82.401,6.70576623]
[1771434915792,10.9199,82.456,82.42,3.01475571]
[1771434916091,10.9199,82.456,82.411,6.75918134]
[1771434916684,3.01475571,82.46,82.411,6.75918134]
[1771434916897,10.9209,82.448,82.411,6.75918134]
[1771434917590,10.9199,82.456,82.411,6.75918134]
[1771434918300,10.9228,82.434,82.394,6.75918134]
[1771434918792,3.81432574,82.44,82.4,3.01475571]
[1771434919892,76.32,82.453,82.42,3.01475571]
[1771434919893,10.9204,82.452,82.42,3.01475571]
[1771434920093,6.81796713,82.47,82.42,3.01475571]
[1771434920694,3.80479476,82.454,82.403,22.56506874]
[1771434920891,3.80479476,82.454,82.41,3.01475571]
[1771434921292,10.921,82.447,82.41,3.01475571]
[1771434922395,3.80479476,82.454,82.411,10.9257]
[1771434922600,10.92,82.455,82.42,3.01475571]
[1771434922991,10.92,82.455,82.412,6.75918134]
[1771434923195,10.92,82.455,82.413,10.9253]
[1771434923501,10.92,82.455,82.412,6.75918134]
[1771434923999,10.92,82.455,82.42,3.01475571]
[1771434925497,14.61779335,82.455,82.41,3.01475571]
[1771434925797,10.9215,82.443,82.4,3.01475571]
[1771434926797,3.69760242,82.439,82.383,6.75918134]
[1771434927194,3.69760242,82.439,82.39,3.01475571]
[1771434927901,10.9236,82.428,82.39,3.01475571]
[1771434928899,10.9236,82.428,82.383,6.75918134]
[1771434928900,10.9243,82.422,82.383,6.75918134]
[1771434929198,3.68636381,82.459,82.41,3.01475571]
[1771434929400,10.9199,82.456,82.42,3.01475571]
[1771434931501,10.9189,82.463,82.423,17.68328134]
[1771434932495,10.9197,82.457,82.42,3.01475571]
[1771434932700,3.70039709,82.459,82.407,6.75918134]
[1771434933004,3.70039709,82.459,82.41,3.01475571]
[1771434933405,3.70039709,82.459,82.411,10.9257]
[1771434934001,10.9208,82.449,82.411,10.9257]
[1771434934497,10.9208,82.449,82.41,3.01475571]
[1771434934697,3.68194231,82.446,82.402,39.7985]
[1771434935002,21.8322,82.484,82.402,39.7985]
[1771434935003,3.01475571,82.45,82.403,6.75918134]
[1771434935206,80.02194231,82.461,82.407,6.75918134]
[1771434935207,3.01475571,82.46,82.407,6.75918134]
[1771434935398,3.68194231,82.459,82.41,3.01475571]
[1771434936500,3.68194231,82.459,82.42,3.01475571]
[1771434936900,3.68194231,82.459,82.413,6.75918134]
[1771434937602,10.9198,82.457,82.415,10.9252]
[1771434938009,76.34,82.461,82.421,6.75918134]
[1771434938307,76.34,82.461,82.42,3.01475571]
[1771434938308,3.01475571,82.49,82.437,10.9223]
[1771434938510,79.35475571,82.49,82.437,10.9223]
[1771434938903,79.35475571,82.49,82.44,3.01475571]
[1771434939106,10.9166,82.481,82.44,3.01475571]
[1771434939509,3.01475571,82.49,82.44,3.01475571]
[1771434940707,10.9173,82.475,82.44,3.01475571]
[1771434942712,3.01475571,82.49,82.441,10.9217]
[1771434942713,10.9164,82.482,82.441,10.9217]
[1771434943612,10.9164,82.482,82.442,6.75918134]
[1771434943813,10.9171,82.477,82.44,3.01475571]
[1771434944010,3.66546975,82.481,82.428,6.75918134]
[1771434944206,3.66546975,82.479,82.431,6.75918134]
[1771434945115,10.9177,82.472,82.432,10.9228]
[1771434945515,76.34,82.484,82.451,6.50233955]
[1771434946711,10.9164,82.482,82.451,6.50233955]
[1771434947917,76.34,82.484,82.44,3.01475571]
[1771434948114,3.01475571,82.49,82.44,3.01475571]
[1771434948314,8.62896667,82.485,82.44,3.01475571]
[1771434948521,10.9172,82.476,82.44,3.01475571]
[1771434949112,10.9163,82.483,82.44,13.93655571]
[1771434949706,3.6240802,82.482,82.43,3.01475571]
[1771434949911,3.6240802,82.479,82.43,3.01475571]
[1771434950316,3.6240802,82.477,82.43,3.01475571]
[1771434950518,3.6240802,82.477,82.421,6.50233955]
[1771434950719,10.9176,82.473,82.43,10.9232]
[1771434953116,14.55979678,82.473,82.43,10.9232]
[1771434953814,14.55979678,82.473,82.43,13.93795571]
[1771434958322,10.9182,82.469,82.43,13.93795571]
[1771434958916,14.56263347,82.461,82.422,39.7985]
[1771434959114,14.56263347,82.461,82.421,6.50233955]
[1771434959313,76.34,82.469,82.421,6.50233955]
[1771434959527,10.919,82.462,82.423,6.31012928]
[1771434959926,3.6829903,82.468,82.423,6.31012928]
[1771434960326,3.6829903,82.459,82.406,6.31012928]
[1771434960530,3.68391898,82.449,82.393,6.31012928]
[1771434960729,3.68386685,82.447,82.393,6.31012928]
[1771434961329,3.68386685,82.447,82.4,3.01475571]
[1771434961721,10.9221,82.439,82.4,3.01475571]
[1771434961925,76.34,82.453,82.411,6.31012928]
[1771434962327,5.0,82.485,82.397,6.31012928]
[1771434962328,3.66450777,82.449,82.397,6.31012928]
[1771434962625,3.66540343,82.429,82.383,6.31012928]
[1771434963330,80.00540343,82.429,82.383,6.31012928]
[1771434963523,76.34,82.433,82.391,6.31012928]
[1771434963919,10.9245,82.421,82.383,22.56506874]
[1771434964126,3.4927029,82.429,82.384,6.31012928]
[1771434964529,3.4927029,82.429,82.39,3.01475571]
[1771434964832,3.4927029,82.429,82.387,6.31012928]
[1771434965020,3.4927029,82.429,82.389,6.31012928]
[1771434965934,3.01475571,82.44,82.391,6.31012928]
[1771434965935,10.9227,82.435,82.391,6.31012928]
[1771434966630,10.9234,82.429,82.391,6.31012928]
[1771434969734,3.01475571,82.43,82.391,6.31012928]
[1771434969936,76.34,82.434,82.391,6.31012928]
[1771434970137,3.01475571,82.44,82.393,6.31012928]
[1771434970430,76.34,82.439,82.393,6.31012928]
[1771434970825,79.35475571,82.44,82.393,6.31012928]
[1771434971230,10.9229,82.433,82.393,6.31012928]
[1771434972027,3.51660862,82.428,82.38,3.01475571]
[1771434972233,3.01475571,82.41,82.364,6.31012928]
[1771434972434,3.01475571,82.4,82.364,6.31012928]
[1771434972742,3.51660862,82.409,82.364,6.31012928]
[1771434973037,10.927,82.402,82.364,6.31012928]
[1771434973636,3.01475571,82.4,82.364,6.31012928]
[1771434973828,3.01475571,82.4,82.337,22.56506874]
[1771434973829,3.51660862,82.409,82.366,6.31012928]
[1771434974040,3.01640094,82.42,82.371,6.31012928]
[1771434974237,79.35640094,82.42,82.371,6.31012928]
[1771434974639,10.9262,82.408,82.371,6.31012928]
[1771434974935,6.48487577,82.41,82.371,6.31012928]
[1771434975840,17.41087577,82.41,82.371,6.31012928]
[1771434977838,76.34,82.411,82.372,6.23435113]
[1771434978835,3.01640094,82.41,82.372,6.23435113]
[1771434979230,10.9279,82.395,82.361,39.7985]
[1771434979431,3.01640094,82.39,82.346,6.23435113]
[1771434979635,3.70280083,82.389,82.346,6.23435113]
[1771434979834,76.34,82.391,82.35,9.25075207]
[1771434980037,3.70280083,82.418,82.361,6.23435113]
[1771434980239,3.70280083,82.416,82.361,6.23435113]
[1771434981836,10.9261,82.409,82.371,10.9309]
[1771434982743,10.9261,82.409,82.372,6.23435113]
[1771434982942,14.62790083,82.416,82.373,10.9307]
[1771434983143,90.96790083,82.416,82.373,10.9307]
[1771434985046,21.841,82.451,82.383,6.23435113]
[1771434985047,10.9241,82.424,82.383,6.23435113]
[1771434985941,3.65394667,82.442,82.392,6.23435113]
[1771434986243,3.65394667,82.439,82.392,6.23435113]
[1771434986845,10.923,82.432,82.394,10.928]
[1771434987241,3.01640094,82.44,82.358,6.23435113]
[1771434987242,3.65302777,82.431,82.358,6.23435113]
[1771434987443,3.65206688,82.399,82.348,39.7985]
[1771434987642,3.65206688,82.399,82.344,6.23435113]
[1771434987643,3.01640094,82.39,82.344,6.23435113]
[1771434987943,76.34,82.401,82.361,6.23435113]
[1771434988250,76.34,82.418,82.371,6.23435113]
[1771434988441,3.01640094,82.42,82.372,6.23435113]
[1771434988945,76.34,82.423,82.372,6.23435113]
[1771434989537,10.9245,82.421,82.378,10.93]
[1771434989844,3.56928283,82.419,82.379,6.23435113]
[1771434990740,10.926,82.41,82.379,6.23435113]
[1771434992440,10.926,82.41,82.371,39.7985]
[1771434992643,10.926,82.41,82.372,10.9309]
[1771434993251,10.925,82.417,82.372,10.9309]
[1771434993453,3.01640094,82.41,82.372,10.9309]
[1771434993651,3.55075001,82.399,82.351,6.23435113]
[1771434993851,3.01640094,82.39,82.351,6.23435113]
[1771434994446,3.54986717,82.387,82.34,3.01640094]
[1771434994656,3.01640094,82.38,82.337,6.23435113]
[1771434994951,3.54986717,82.387,82.337,6.23435113]
[1771434995754,3.54986717,82.387,82.344,17.16895113]
[1771434996551,3.54986717,82.387,82.33,3.01640094]
[1771434996552,10.9291,82.386,82.347,10.9342]
[1771434997457,10.9279,82.395,82.356,10.933]
[1771434998851,3.01640094,82.39,82.356,10.933]
[1771434999953,10.9287,82.389,82.349,10.9339]
[1771435000154,3.01640094,82.38,82.331,6.23435113]
[1771435000356,3.01640094,82.38,82.332,6.23435113]
[1771435000650,3.01640094,82.4,82.353,6.23435113]
[1771435000857,6.56018768,82.4,82.353,6.23435113]
[1771435001152,3.01640094,82.39,82.353,6.23435113]
[1771435001659,3.01640094,82.39,82.355,10.9331]
[1771435002156,3.01640094,82.39,82.356,6.23435113]
[1771435002853,3.01640094,82.4,82.356,6.23435113]
[1771435003059,6.56812988,82.4,82.356,6.23435113]
[1771435003354,3.01640094,82.39,82.342,6.23435113]
[1771435003552,3.55093404,82.388,82.348,10.9341]
[1771435004656,3.55093404,82.388,82.355,10.9331]
[1771435005054,3.01640094,82.4,82.355,10.9331]
[1771435005250,10.928,82.394,82.355,10.9331]
[1771435005452,3.01640094,82.39,82.355,10.9331]
[1771435006058,6.56561217,82.4,82.36,10.9324]
[1771435006455,3.57384208,82.399,82.36,10.9324]
[1771435008258,10.9276,82.397,82.36,10.9324]
[1771435008760,3.57384208,82.399,82.36,17.39203806]
[1771435009158,3.01640094,82.4,82.353,10.9334]
[1771435009159,3.59494382,82.396,82.353,10.9334]
[1771435009458,3.59494382,82.396,82.352,6.45963806]
[1771435010849,3.59494382,82.396,82.359,10.9326]
[1771435010850,10.9282,82.393,82.359,10.9326]
[1771435011855,3.59494382,82.396,82.365,10.9318]
[1771435012658,3.58672121,82.41,82.372,6.45963806]
[1771435014657,10.9261,82.409,82.373,10.9307]
[1771435017666,6.60312215,82.41,82.378,10.93]
[1771435017863,3.58672121,82.41,82.378,10.93]
[1771435019656,10.9252,82.416,82.378,10.93]
[1771435020257,10.9252,82.416,82.381,10.9297]
[1771435022171,10.9252,82.416,82.355,76.92]
[1771435022172,3.61529376,82.446,82.401,6.30166919]
[1771435022465,3.01640094,82.44,82.401,6.30166919]
[1771435022855,3.61447778,82.419,82.378,6.30166919]
[1771435024170,10.9251,82.417,82.379,6.30166919]
[1771435024369,76.36,82.421,82.381,6.30166919]
[1771435024670,76.36,82.421,82.391,6.30166919]
[1771435025271,76.36,82.43,82.391,6.30166919]
[1771435025770,76.36,82.43,82.395,10.9279]
[1771435026164,76.36,82.43,82.396,6.30166919]
[1771435026570,10.9235,82.428,82.396,6.30166919]
[1771435027270,76.36,82.43,82.396,6.30166919]
[1771435027570,10.9227,82.434,82.396,6.30166919]
[1771435028562,3.5250642,82.442,82.392,6.30166919]
[1771435028771,3.52510833,82.439,82.392,6.30166919]
[1771435028971,3.52510833,82.437,82.392,6.30166919]
[1771435029662,10.9235,82.429,82.394,10.928]
[1771435030474,10.9226,82.435,82.4,20.24517013]
[1771435030771,3.54025354,82.435,82.38,3.01640094]
[1771435030969,3.54025354,82.419,82.368,6.30166919]
[1771435031166,76.36,82.418,82.381,6.30166919]
[1771435031770,76.36,82.418,82.383,10.9294]
[1771435033274,76.36,82.418,82.38,3.01640094]
[1771435033275,76.36,82.418,82.388,10.9287]
[1771435040380,76.36,82.418,82.384,6.30166919]
[1771435040568,3.63953688,82.417,82.371,6.80032611]
[1771435040768,3.63953688,82.415,82.371,6.80032611]
[1771435040976,3.63953688,82.408,82.374,10.9306]
[1771435041166,79.99953688,82.408,82.374,10.9306]
[1771435041369,3.63953688,82.407,82.374,10.9306]
[1771435043776,3.63953688,82.407,82.36,3.01528623]
[1771435043777,3.63953688,82.407,82.379,10.9299]
[1771435044676,76.36,82.413,82.381,6.80032611]
[1771435045080,76.36,82.425,82.381,6.80032611]
[1771435045573,76.36,82.425,82.396,10.9277]
[1771435045778,80.00562346,82.433,82.397,6.80032611]
[1771435046079,10.923,82.432,82.397,6.80032611]
[1771435046477,80.00562346,82.433,82.397,6.80032611]
[1771435046779,76.36,82.434,82.397,6.80032611]
[1771435047278,10.9212,82.446,82.404,10.9265]
[1771435047480,76.36,82.445,82.404,10.9265]
[1771435047682,76.36,82.445,82.411,6.80032611]
[1771435048781,76.36,82.445,82.377,21.8604]
[1771435048782,3.59279916,82.462,82.421,6.80032611]
[1771435049378,3.59279916,82.462,82.424,10.9239]
[1771435049575,76.36,82.466,82.399,98.91703575]
[1771435049576,76.36,82.466,82.431,6.80032611]
[1771435049775,76.36,82.466,82.395,21.8556]
[1771435049776,6.58369834,82.49,82.441,6.80032611]
[1771435049982,79.92841211,82.49,82.441,6.80032611]
[1771435050282,3.56841211,82.49,82.441,6.80032611]
[1771435050481,76.36,82.489,82.441,6.80032611]
[1771435050680,21.8237,82.517,82.416,22.55703575]
[1771435050681,3.56781763,82.505,82.461,6.80032611]
[1771435050880,3.56781763,82.519,82.47,3.01528623]
[1771435051180,3.56781763,82.517,82.472,6.80032611]
[1771435051376,9.02465464,82.554,82.441,76.36]
[1771435051377,3.56781763,82.509,82.46,3.01528623]
[1771435051571,3.57320125,82.515,82.471,6.80032611]
[1771435051774,3.57320125,82.509,82.452,6.80032611]
[1771435052078,3.57320125,82.509,82.47,3.01528623]
[1771435052271,3.01528623,82.52,82.471,6.80032611]
[1771435052474,79.93272002,82.519,82.471,6.80032611]
[1771435053377,3.57274925,82.518,82.471,6.80032611]
[1771435054574,3.57274925,82.518,82.424,22.55703575]
[1771435054575,3.93473406,82.532,82.49,3.01528623]
[1771435054771,76.36,82.531,82.481,6.80032611]
[1771435054977,76.36,82.53,82.481,6.80032611]
[1771435055178,79.37528623,82.53,82.481,6.80032611]
[1771435055376,76.36,82.53,82.491,6.80032611]
[1771435055682,3.01528623,82.53,82.491,6.80032611]
[1771435056082,4.1957998,82.528,82.48,3.01528623]
[1771435056284,4.1957998,82.499,82.451,6.80032611]
[1771435056585,76.36,82.517,82.471,6.80032611]
[1771435056779,4.19525254,82.516,82.461,10.9191]
[1771435056972,7.21053877,82.51,82.461,10.9191]
[1771435057179,3.01528623,82.5,82.461,17.71942611]
[1771435057486,4.19525254,82.508,82.461,17.71942611]
[1771435057881,4.19525254,82.508,82.47,10.9179]
[1771435058583,76.36,82.509,82.48,3.01528623]
[1771435058785,4.12677832,82.522,82.48,9.81561234]
[1771435059376,4.12677832,82.522,82.481,6.80032611]
[1771435059780,4.12677832,82.522,82.484,10.916]
[1771435060579,3.01528623,82.53,82.484,10.916]
[1771435060889,3.01528623,82.53,82.441,39.7985]
[1771435060890,4.75706401,82.519,82.467,6.80032611]
[1771435061080,21.8113,82.564,82.467,6.80032611]
[1771435061081,7.77235024,82.51,82.467,6.80032611]
[1771435061278,4.75706401,82.51,82.467,6.80032611]
[1771435062082,4.78814237,82.527,82.475,6.80032611]
[1771435063085,4.7876345,82.523,82.471,10.9178]
[1771435063293,4.7876345,82.509,82.455,39.7985]
[1771435063489,7.80292073,82.5,82.455,39.7985]
[1771435063786,7.80292073,82.5,82.453,6.80032611]
[1771435064177,4.7876345,82.5,82.461,10.919]
[1771435064582,15.7016345,82.5,82.454,6.80032611]
[1771435064983,18.71692073,82.5,82.454,6.80032611]
[1771435066684,7.80292073,82.5,82.459,6.73767646]
[1771435066885,4.7876345,82.5,82.459,6.73767646]
[1771435068087,7.80292073,82.5,82.459,6.73767646]
[1771435068391,4.49316603,82.479,82.432,6.73767646]
[1771435068892,3.01528623,82.47,82.432,6.73767646]
[1771435069296,4.49261488,82.477,82.432,6.73767646]
[1771435069684,10.9187,82.464,82.432,6.73767646]
[1771435069890,3.01528623,82.46,82.419,6.73767646]
[1771435074296,10.9176,82.473,82.431,6.73767646]
[1771435075797,10.9176,82.473,82.433,6.73767646]
[1771435076189,10.9162,82.484,82.433,6.73767646]
[1771435076494,10.9162,82.484,82.443,6.73767646]
[1771435078593,16.19674487,82.484,82.443,6.73767646]
[1771435078794,10.917,82.477,82.434,10.9226]
[1771435079099,3.01528623,82.48,82.435,6.86764841]
[1771435079491,5.28000341,82.479,82.435,6.86764841]
[1771435081292,10.9171,82.477,82.436,10.9224]
[1771435081496,5.27748971,82.469,82.422,6.86764841]
[1771435081694,3.01528623,82.46,82.422,6.86764841]
[1771435082097,5.27748971,82.469,82.428,10.9235]
[1771435082291,5.27748971,82.469,82.429,6.86764841]
[1771435082895,16.19568971,82.469,82.43,10.9231]
[1771435083996,5.27612403,82.459,82.42,10.9245]
[1771435084708,16.19546272,82.458,82.42,10.9245]
[1771435085694,16.19546272,82.458,82.399,39.7985]
[1771435085695,3.01528623,82.44,82.402,6.86764841]
[1771435086002,8.27689941,82.45,82.402,6.86764841]
[1771435086798,10.9216,82.443,82.404,10.9266]
[1771435087097,10.9216,82.443,82.402,6.86764841]
[1771435087098,3.01528623,82.43,82.387,6.86764841]
[1771435087301,10.9201,82.454,82.41,9.88293464]
[1771435087501,10.9201,82.454,82.411,6.86764841]
[1771435087702,10.9201,82.454,82.411,2.02764841]
[1771435088703,10.9201,82.454,82.416,10.9249]
[1771435092504,10.9201,82.454,82.417,6.86764841]
[1771435092700,10.9201,82.454,82.418,10.9248]
[1771435092897,10.9189,82.463,82.419,6.86764841]
[1771435093807,10.9189,82.463,82.42,10.9244]
[1771435094806,10.9189,82.463,82.424,6.86764841]
[1771435095009,17.15,82.585,82.388,51.9485]
[1771435095010,10.9176,82.473,82.431,6.21363863]
[1771435096807,6.58770517,82.469,82.431,6.21363863]
[1771435097410,6.58770517,82.468,82.431,6.21363863]
[1771435098306,3.01174225,82.47,82.431,6.21363863]
[1771435098613,10.9175,82.474,82.431,6.21363863]
[1771435099210,6.58770517,82.479,82.444,10.9214]
[1771435099511,6.58770517,82.492,82.45,9.22538088]
[1771435100819,6.58770517,82.492,82.455,10.9198]
[1771435102316,10.9147,82.495,82.456,6.21363863]
[1771435102519,6.58770517,82.505,82.461,6.21363863]
[1771435102711,3.01174225,82.5,82.445,6.21363863]
[1771435103014,206.0784,82.556,82.431,6.21363863]
[1771435103015,6.58770517,82.483,82.431,6.21363863]
[1771435103311,6.58770517,82.483,82.411,21.8515]
[1771435103312,6.58770517,82.483,82.44,9.22538088]
[1771435104112,6.58770517,82.48,82.44,6.21363863]
[1771435104516,6.58770517,82.48,82.44,9.22538088]
[1771435104817,6.58770517,82.48,82.441,6.21363863]
[1771435105214,3.01174225,82.49,82.441,6.21363863]
[1771435105615,6.58770517,82.489,82.453,10.9201]
[1771435105916,6.58770517,82.489,82.453,17.13373863]
[1771435109413,6.58770517,82.479,82.43,42.81024225]
[1771435109609,6.58770517,82.469,82.417,22.55703575]
[1771435109917,17.50820517,82.451,82.413,17.13903863]
[1771435110109,6.58770517,82.45,82.413,10.9254]
[1771435112022,6.58770517,82.45,82.403,6.21363863]
[1771435113224,6.58770517,82.45,82.41,3.01174225]
[1771435113725,6.58770517,82.45,82.417,10.9248]
[1771435114219,10.9199,82.456,82.417,10.9248]
[1771435115922,6.58770517,82.463,82.424,6.21363863]
[1771435117415,10.9187,82.464,82.424,6.21363863]
[1771435117823,10.9187,82.464,82.425,10.9238]
[1771435121724,6.58770517,82.476,82.433,10.9227]
[1771435121932,6.58770517,82.476,82.434,6.21363863]
[1771435122528,6.58770517,82.476,82.44,3.01174225]
[1771435122831,6.58770517,82.489,82.441,6.21363863]
[1771435123718,10.9165,82.481,82.441,17.13533863]
[1771435127632,10.9165,82.481,82.443,10.9214]
[1771435130623,6.83659959,82.48,82.443,10.9214]
[1771435131029,10.9179,82.47,82.432,6.59218762]
[1771435131438,10.9179,82.47,82.44,3.01174225]
[1771435132137,6.83659959,82.48,82.442,10.9215]
[1771435133832,10.9169,82.479,82.442,10.9215]
[1771435134329,6.83659959,82.502,82.453,6.59218762]
[1771435134536,6.83659959,82.489,82.44,3.01174225]
[1771435135536,6.83659959,82.489,82.437,6.59218762]
[1771435135740,6.83659959,82.478,82.44,13.93364225]
[1771435137639,6.35183306,82.469,82.425,6.21306444]
[1771435138435,6.35183306,82.482,82.431,6.21306444]
[1771435138739,6.35183306,82.479,82.431,6.21306444]
[1771435139826,10.9181,82.469,82.431,6.21306444]
[1771435140529,6.35183306,82.476,82.438,10.9221]
[1771435141338,17.26923306,82.474,82.431,17.13606444]
[1771435141534,6.35183306,82.473,82.431,17.13606444]
[1771435142938,10.918,82.47,82.431,17.13606444]
[1771435143937,10.918,82.47,82.432,6.21306444]
[1771435144141,10.918,82.47,82.435,10.9226]
[1771435144333,6.35183306,82.486,82.44,3.01174225]
[1771435144538,76.36,82.488,82.419,22.55703575]
[1771435144539,6.35183306,82.469,82.419,22.55703575]
[1771435144736,6.35183306,82.469,82.422,6.21306444]
[1771435144936,6.35183306,82.469,82.431,6.21306444]
[1771435145137,6.35183306,82.497,82.441,6.21306444]
[1771435145548,6.35183306,82.497,82.451,6.21306444]
[1771435146147,6.35183306,82.497,82.46,3.01174225]
[1771435146440,10.9156,82.488,82.46,3.01174225]
[1771435146640,10.9156,82.488,82.451,6.21306444]
[1771435147635,10.9147,82.495,82.454,6.21306444]
[1771435150247,6.35183306,82.497,82.46,3.01174225]
[1771435150443,6.35183306,82.497,82.461,6.21306444]
[1771435150645,10.9135,82.504,82.461,6.21306444]
[1771435151251,17.26533306,82.504,82.461,6.21306444]
[1771435152150,6.35183306,82.503,82.461,6.21306444]
[1771435152346,3.01174225,82.51,82.463,6.21306444]
[1771435152549,6.35183306,82.511,82.471,6.21306444]
[1771435152741,6.35183306,82.529,82.481,6.21306444]
[1771435152945,10.9108,82.524,82.481,6.21306444]
[1771435153654,10.9108,82.524,82.482,10.9163]
[1771435153851,10.9108,82.524,82.482,17.12936444]
[1771435155852,17.7524165,82.524,82.482,17.12936444]
[1771435156050,6.8416165,82.523,82.482,17.12936444]
[1771435156849,6.8416165,82.521,82.482,6.21306444]
[1771435158053,6.8416165,82.521,82.49,3.0081405]
[1771435159057,6.8416165,82.521,82.486,10.9158]
[1771435160357,6.8416165,82.533,82.498,6.40412077]
[1771435161754,17.7512165,82.533,82.498,6.40412077]
[1771435161959,10.9096,82.533,82.5,9.41226127]
[1771435162350,10.9096,82.533,82.5,6.40412077]
[1771435165863,6.8416165,82.561,82.52,3.0081405]
[1771435166065,6.8416165,82.539,82.491,6.40412077]
[1771435166561,6.8416165,82.55,82.501,6.40412077]
[1771435167461,6.8416165,82.55,82.511,17.31652077]
[1771435168065,6.8416165,82.55,82.515,10.9119]
[1771435168859,6.8416165,82.549,82.498,6.40412077]
[1771435169064,6.8416165,82.549,82.49,3.0081405]
[1771435169065,6.8416165,82.539,82.49,3.0081405]
[1771435169261,6.8416165,82.539,82.491,6.40412077]
[1771435169456,6.8416165,82.539,82.503,17.31762077]
[1771435169861,10.9076,82.548,82.506,17.31722077]
[1771435170067,10.9076,82.548,82.507,6.40412077]
[1771435171961,76.34,82.555,82.463,76.34]
[1771435171962,76.34,82.555,82.514,6.40412077]
[1771435172163,3.0081405,82.56,82.501,39.7985]
[1771435172164,6.8416165,82.565,82.521,6.40412077]
[1771435172767,6.8416165,82.577,82.53,9.41226127]
[1771435173062,6.8416165,82.575,82.53,6.40412077]
[1771435174863,6.8416165,82.575,82.52,3.0081405]
[1771435174864,6.8416165,82.559,82.513,6.40412077]